[Event "Kragero Resort Chess A 2019"]
[Site "Kragero"]
[Date "2019.02.22"]
[Round "5.30"]
[White "Heimisson, Hilmir Freyr"]
[Black "Tunsjo, Axel"]
[Result "1-0"]
[ECO "D24"]
[WhiteElo "2394"]
[BlackElo "1937"]
[Annotator "NA"]
[PlyCount "86"]
[EventDate "2019.02.20"]
[EventType "swiss"]
[EventCountry "NOR"]
[SourceTitle "playchess.com"]
[Source "ChessBase"]
[SourceQuality "1"]
[TimeControl "5400+30"]

1. Nf3 {[%emt 0:00:00]} Nf6 {[%emt 0:00:00]} 2. c4 {[%emt 0:00:00]} e6 {[%emt 0:00:13]} 3. Nc3 {[%emt 0:00:45]} d5 {[%emt 0:06:47]} 4. d4 {[%emt 0:00:09]} dxc4 {[%emt 0:03:07]} 5. e4 {[%emt 0:00:30]} Bb4 {[%emt 0:00:05]} 6. Bxc4 {[%emt 0:00:31]} c5 {[%emt 0:11:56]} 7. O-O {[%emt 0:08:16]} cxd4 {[%emt 0:01:10]} 8. Nxd4 {[%emt 0:00:24]} O-O {[%emt 0:10:53]} 9. Bg5 {[%emt 0:02:43]} Be7 {[%emt 0:02:34]} 10. e5 {[%emt 0:09:50]} Nfd7 {[%emt 0:01:17]} 11. Bf4 {[%emt 0:01:18]} a6 {[%emt 0:06:05]} 12. a4 {[%emt 0:03:33]} Nc6 {[%emt 0:06:43]} 13. Nxc6 {[%emt 0:05:51]} bxc6 {[%emt 0:00:03]} 14. Qg4 {[%emt 0:05:07]} Kh8 {[%emt 0:03:50]} 15. Rfd1 {[%emt 0:00:56]} Qa5 {[%emt 0:00:32]} 16. Qe2 {[%emt 0:06:49]} Nb6 {[%emt 0:09:06]} 17. Bd3 {[%emt 0:10:08]} Bd7 {[%emt 0:11:44]} 18. Qe4 {[%emt 0:05:38]} g6 {[%emt 0:00:46]} 19. Bh6 {[%emt 0:07:02]} Rfd8 {[%emt 0:01:31]} 20. Qf4 {[%emt 0:00:42]} Be8 {[%emt 0:03:57]} 21. Be4 {[%emt 0:02:34]} Nd5 {[%emt 0:00:59]} 22. Bxd5 {[%emt 0:02:39]} cxd5 {[%emt 0:00:08]} 23. Bg5 {[%emt 0:00:25]} Bxg5 {[%emt 0:06:01]} 24. Qxg5 {[%emt 0:00:02]} Rdc8 {[%emt 0:01:06]} 25. Qh6 {[%emt 0:04:31]} Bc6 {[%emt 0:00:57]} 26. Rd4 {[%emt 0:00:23]} Qd8 {[%emt 0:00:21]} 27. Rh4 {[%emt 0:02:38]} Qg8 {[%emt 0:00:07]} 28. Rd1 {[%emt 0:00:03]} Qg7 {[%emt 0:01:12]} 29. Qe3 {[%emt 0:01:02]} Rab8 {[%emt 0:00:49]} 30. b4 {[%emt 0:00:14]} f6 {[%emt 0:05:52]} 31. exf6 {[%emt 0:08:58]} Qxf6 {[%emt 0:00:01]} 32. Qh3 Qf7 {[%emt 0:00:36]} 33. Qd3 {[%emt 0:01:52]} Bb7 {[%emt 0:01:19]} 34. b5 {[%emt 0:02:03]} axb5 {[%emt 0:00:13]} 35. Nxb5 {[%emt 0:00:30]} Ba6 {[%emt 0:00:32]} 36. Nd6 {[%emt 0:03:33]} Bxd3 {[%emt 0:00:10]} 37. Nxf7+ {[%emt 0:00:03]} Kg7 {[%emt 0:00:06]} 38. Ng5 {[%emt 0:00:06]} Bc2 {[%emt 0:01:52]} 39. Rxh7+ {[%emt 0:02:40]} Kf6 {[%emt 0:00:52]} 40. f4 {[%emt 0:00:30]} Rf8 {[%emt 0:00:03]} 41. Re1 {[%emt 0:00:56]} Rbe8 {[%emt 0:01:10]} 42. Rc7 {[%emt 0:00:10]} Bxa4 {[%emt 0:02:45]} 43. g4 {[%emt 0:00:26]} Rh8 {[%emt 0:01:01]} 1-0

[Event "Kragero Resort Chess A 2019"]
[Site "Kragero"]
[Date "2019.02.22"]
[Round "5.31"]
[White "Gonzalez, Francisco Silva"]
[Black "Albzour, Abdalsalam"]
[Result "1-0"]
[ECO "D45"]
[WhiteElo "2142"]
[BlackElo "1869"]
[Annotator "NA"]
[PlyCount "49"]
[EventDate "2019.02.20"]
[EventType "swiss"]
[EventCountry "NOR"]
[SourceTitle "playchess.com"]
[Source "ChessBase"]
[SourceQuality "1"]
[TimeControl "5400+30"]

1. d4 {[%emt 0:03:17]} c6 {[%emt 0:06:11]} 2. c4 {[%emt 0:00:35]} e6 {[%emt 0:00:56]} 3. Nc3 {[%emt 0:00:25]} d5 {[%emt 0:00:50]} 4. e3 {[%emt 0:00:16]} Nf6 {[%emt 0:00:27]} 5. Nf3 {[%emt 0:00:17]} Be7 {[%emt 0:00:05]} 6. Bd3 {[%emt 0:00:32]} h6 {[%emt 0:00:48]} 7. O-O {[%emt 0:00:48]} O-O {[%emt 0:01:00]} 8. e4 {[%emt 0:00:20]} dxe4 {[%emt 0:00:43]} 9. Nxe4 {[%emt 0:00:13]} Nxe4 {[%emt 0:01:46]} 10. Bxe4 {[%emt 0:00:07]} Nd7 {[%emt 0:00:31]} 11. Qe2 {[%emt 0:02:31]} Nf6 {[%emt 0:00:37]} 12. Bc2 {[%emt 0:00:10]} c5 {[%emt 0:03:26]} 13. Rd1 {[%emt 0:00:48]} cxd4 {[%emt 0:00:25]} 14. Nxd4 {[%emt 0:00:35]} Qc7 {[%emt 0:01:45]} 15. Rd3 {[%emt 0:02:25]} Rd8 {[%emt 0:10:43]} 16. Nb5 {[%emt 0:00:09]} Qc5 {[%emt 0:00:53]} 17. Be3 {[%emt 0:03:41]} Qe5 {[%emt 0:02:00]} 18. f4 {[%emt 0:02:08]} Qb8 {[%emt 0:05:38]} 19. g4 {[%emt 0:08:56]} Kf8 {[%emt 0:12:55]} 20. g5 {[%emt 0:01:40]} hxg5 {[%emt 0:00:56]} 21. fxg5 {[%emt 0:00:13]} Rxd3 {[%emt 0:00:26]} 22. gxf6 {[%emt 0:02:48]} Bxf6 {[%emt 0:04:46]} 23. Bc5+ {[%emt 0:00:10]} Kg8 {[%emt 0:00:53]} 24. Qxd3 {[%emt 0:00:08]} g6 {[%emt 0:00:30]} 25. Bd6 {[%emt 0:00:07]} 1-0

[Event "Kragero Resort Chess A 2019"]
[Site "Kragero"]
[Date "2019.02.23"]
[Round "6.7"]
[White "Getz, Nicolai"]
[Black "Tryggestad, Andreas Garberg"]
[Result "0-1"]
[ECO "B47"]
[WhiteElo "2398"]
[BlackElo "2351"]
[Annotator "ChessBase"]
[PlyCount "118"]
[EventDate "2019.02.20"]
[EventType "swiss"]
[EventCountry "NOR"]
[SourceTitle "playchess.com"]
[Source "ChessBase"]
[SourceQuality "1"]
[TimeControl "5400+30"]

1. e4 {[%emt 0:00:00]} c5 {[%emt 0:03:05]} 2. Nf3 {[%emt 0:00:00]} e6 {[%emt 0:00:05]} 3. d4 {[%emt 0:00:00]} cxd4 {[%emt 0:00:03]} 4. Nxd4 {[%emt 0:00:00]} Nc6 {[%emt 0:00:05]} 5. Nc3 {[%emt 0:00:03]} Qc7 {[%emt 0:00:04]} 6. Be3 {[%emt 0:00:30]} Nf6 {[%emt 0:00:06]} 7. Ndb5 {[%emt 0:00:13]} Qb8 {[%emt 0:00:07]} 8. f4 {[%emt 0:00:05]} a6 {[%emt 0:01:12]} 9. e5 {[%emt 0:00:06]} Ng8 {[%emt 0:11:01]} 10. Nd6+ {[%emt 0:06:38]} Bxd6 {[%emt 0:00:10]} 11. exd6 {[%emt 0:00:15]} b5 {[%emt 0:00:32]} 12. Qg4 {[%emt 0:03:59]} Kf8 {[%emt 0:00:59]} 13. O-O-O {[%emt 0:00:35]} Nh6 {[%emt 0:02:57]} 14. Qh3 {[%emt 0:04:20]} Bb7 {[%emt 0:00:27]} 15. g4 {[%emt 0:08:11]} f5 {[%emt 0:04:00]} 16. gxf5 {[%emt 0:04:46]} Nxf5 {[%emt 0:00:15]} 17. Rg1 {[%emt 0:07:11]} Qe8 {[%emt 0:08:30]} 18. Bd3 {[%emt 0:04:33]} Qf7 {[%emt 0:00:38]} 19. Rg5 {[%emt 0:04:59]} g6 {[%emt 0:03:22]} 20. Rdg1 {[%emt 0:06:01]} Rg8 {[%emt 0:04:02]} 21. Bxf5 {[%emt 0:18:23]} exf5 {[%emt 0:00:13]} 22. Qh6+ {[%emt 0:01:41]} Ke8 {[%emt 0:06:51]} 23. h4 {[%emt 0:03:55]} Nd8 {[%emt 0:24:14]} 24. h5 {[%emt 0:01:15]} Qg7 {[%emt 0:00:10]} 25. Qxg7 {[%emt 0:01:10]} Rxg7 {[%emt 0:00:02]} 26. Rxf5 {[%emt 0:01:53]} Ne6 {[%emt 0:11:35]} 27. Re5 {[%emt 0:01:54]} Kf7 {[%emt 0:02:04]} 28. h6 {[%emt 0:01:01]} Rgg8 {[%emt 0:00:13]} 29. a4 {[%emt 0:03:51]} Bc6 {[%emt 0:05:54]} 30. axb5 {[%emt 0:07:21]} axb5 {[%emt 0:00:01]} 31. Kb1 {[%emt 0:00:39]} Ra6 {[%emt 0:02:31]} 32. b4 {[%emt 0:01:13]} Kf6 {[%emt 0:01:39]} 33. Kb2 {[%emt 0:01:14]} g5 {[%emt 0:03:35]} 34. Nd5+ {[%emt 0:00:19]} Bxd5 {[%emt 0:00:12]} 35. Rxd5 {[%emt 0:00:17]} g4 {[%emt 0:00:11]} 36. f5 {[%emt 0:00:45]} Nd8 {[%emt 0:00:23]} 37. Bd4+ {[%emt 0:01:33]} Kf7 {[%emt 0:00:10]} 38. Bg7 {[%emt 0:01:28]} Nb7 {[%emt 0:00:18]} 39. Be5 {[%emt 0:01:05]} Rb6 {[%emt 0:03:12]} 40. Rg3 {[%emt 0:00:46]} Nd8 {[%emt 0:00:18]} 41. c3 {[%emt 0:01:59]} Rg5 {[%emt 0:00:25]} 42. Bf4 {[%emt 0:00:24]} Rg8 {[%emt 0:00:02]} 43. Be3 {[%emt 0:01:48]} Ra6 {[%emt 0:00:29]} 44. Bf4 {[%emt 0:00:27]} Rb6 {[%emt 0:00:10]} 45. Kb3 {[%emt 0:00:18]} Kf6 {[%emt 0:00:05]} 46. Be3 {[%emt 0:00:48]} Ra6 {[%emt 0:00:02]} 47. Bd4+ {[%emt 0:00:19]} Kg5 {[%emt 0:02:19]} 48. Bg7 {[%emt 0:01:01]} Nf7 {[%emt 0:00:17]} 49. f6+ {[%emt 0:01:02]} Kh4 {[%emt 0:00:25]} 50. Rg1 {[%emt 0:00:32]} Rxd6 {[%emt 0:00:15]} 51. Rxd6 {[%emt 0:00:33]} Nxd6 {[%emt 0:00:01]} 52. Rd1 {[%emt 0:00:18]} Nf7 {[%emt 0:00:14]} 53. Rxd7 {[%emt 0:00:06]} g3 {[%emt 0:00:26]} 54. Rxf7 {[%emt 0:02:39]} g2 {[%emt 0:00:02]} 55. Ra7 {[%emt 0:00:34]} g1=Q {[%emt 0:00:05]} 56. f7 {[%emt 0:00:31]} Rc8 {[%emt 0:05:13]} 57. Ra2 {[%emt 0:00:28]} Qd1+ {[%emt 0:00:27]} 58. Kb2 {[%emt 0:00:28]} Qe2+ {[%emt 0:00:12]} 59. Kb1 {[%emt 0:00:36]} Qf1+ {[%emt 0:00:07]} 0-1

[Event "Kragero Resort Chess A 2019"]
[Site "Kragero"]
[Date "2019.02.23"]
[Round "6.13"]
[White "Lund, Gunnar"]
[Black "Osmak, Iulija"]
[Result "0-1"]
[ECO "C01"]
[WhiteElo "2211"]
[BlackElo "2394"]
[Annotator "ChessBase"]
[PlyCount "120"]
[EventDate "2019.02.20"]
[EventType "swiss"]
[EventCountry "NOR"]
[SourceTitle "playchess.com"]
[Source "ChessBase"]
[SourceQuality "1"]
[TimeControl "5400+30"]

1. e4 {[%emt 0:00:00]} e6 {[%emt 0:04:11]} 2. d4 {[%emt 0:00:00]} d5 {[%emt 0:00:12]} 3. exd5 {[%emt 0:00:00]} exd5 {[%emt 0:00:15]} 4. Nf3 {[%emt 0:00:02]} Nc6 {[%emt 0:00:34]} 5. Bb5 {[%emt 0:00:07]} Bd6 {[%emt 0:00:38]} 6. O-O {[%emt 0:00:14]} Nge7 {[%emt 0:00:19]} 7. Bg5 {[%emt 0:06:53]} O-O {[%emt 0:03:57]} 8. Bh4 {[%emt 0:03:14]} a6 {[%emt 0:08:01]} 9. Be2 {[%emt 0:08:56]} Bf5 {[%emt 0:01:34]} 10. c3 {[%emt 0:00:34]} Qd7 {[%emt 0:01:18]} 11. Nbd2 {[%emt 0:18:39]} Ng6 {[%emt 0:01:41]} 12. Bg3 {[%emt 0:01:39]} Nf4 {[%emt 0:00:55]} 13. Re1 {[%emt 0:00:46]} Rfe8 {[%emt 0:04:22]} 14. Nf1 {[%emt 0:01:20]} Bg4 {[%emt 0:06:01]} 15. Bxf4 {[%emt 0:14:19]} Bxf4 {[%emt 0:00:21]} 16. Ng3 {[%emt 0:00:21]} Qd6 {[%emt 0:07:18]} 17. Qd3 {[%emt 0:01:46]} g6 {[%emt 0:01:25]} 18. Bf1 {[%emt 0:00:59]} h5 {[%emt 0:04:29]} 19. Ne2 {[%emt 0:08:28]} Bh6 {[%emt 0:04:38]} 20. Ng3 {[%emt 0:01:43]} Qf6 {[%emt 0:01:22]} 21. h3 {[%emt 0:06:28]} Bxf3 {[%emt 0:02:40]} 22. Qxf3 {[%emt 0:00:07]} Qxf3 {[%emt 0:00:07]} 23. gxf3 {[%emt 0:00:04]} h4 {[%emt 0:02:11]} 24. Ne2 {[%emt 0:00:23]} Re6 {[%emt 0:03:48]} 25. Red1 {[%emt 0:00:33]} Rae8 {[%emt 0:03:08]} 26. Nc1 {[%emt 0:00:24]} Rf6 {[%emt 0:01:08]} 27. Nd3 {[%emt 0:00:47]} Rxf3 {[%emt 0:03:00]} 28. Bg2 {[%emt 0:06:05]} Rf5 {[%emt 0:00:29]} 29. Re1 {[%emt 0:02:48]} Rb8 {[%emt 0:03:01]} 30. Re2 {[%emt 0:02:24]} b6 {[%emt 0:04:15]} 31. Rae1 {[%emt 0:02:39]} Kf8 {[%emt 0:01:26]} 32. b4 {[%emt 0:01:05]} Rd8 {[%emt 0:04:00]} 33. a4 {[%emt 0:02:14]} Bg5 {[%emt 0:03:28]} 34. b5 {[%emt 0:01:14]} axb5 {[%emt 0:00:18]} 35. axb5 {[%emt 0:00:07]} Na7 {[%emt 0:01:25]} 36. Rb2 {[%emt 0:01:36]} Nc8 {[%emt 0:05:13]} 37. Nb4 {[%emt 0:03:31]} Ne7 {[%emt 0:01:04]} 38. Ra1 {[%emt 0:00:56]} Bf4 {[%emt 0:00:55]} 39. Rba2 {[%emt 0:02:05]} Kg7 {[%emt 0:02:18]} 40. Ra8 {[%emt 0:00:11]} Rd6 {[%emt 0:02:54]} 41. R1a2 {[%emt 0:01:46]} Re6 {[%emt 0:00:42]} 42. Nd3 {[%emt 0:00:06]} Bd6 {[%emt 0:00:52]} 43. Kf1 {[%emt 0:01:32]} Ng8 {[%emt 0:02:48]} 44. Re2 {[%emt 0:01:46]} Rxe2 {[%emt 0:01:17]} 45. Kxe2 {[%emt 0:00:02]} Nf6 {[%emt 0:00:04]} 46. Ne1 {[%emt 0:01:33]} Rg5 {[%emt 0:02:51]} 47. Bf3 {[%emt 0:00:15]} Ne4 {[%emt 0:00:37]} 48. Bxe4 {[%emt 0:00:30]} dxe4 {[%emt 0:00:05]} 49. c4 {[%emt 0:00:08]} Kf6 {[%emt 0:02:55]} 50. Nc2 {[%emt 0:00:15]} Ke7 {[%emt 0:00:54]} 51. Rh8 {[%emt 0:00:21]} f5 {[%emt 0:00:41]} 52. Rxh4 {[%emt 0:00:37]} f4 {[%emt 0:00:11]} 53. Rg4 {[%emt 0:00:31]} Rh5 {[%emt 0:01:07]} 54. h4 {[%emt 0:01:11]} Kf6 {[%emt 0:00:12]} 55. f3 {[%emt 0:00:04]} Kf5 {[%emt 0:01:05]} 56. Ne1 {[%emt 0:00:09]} Be7 {[%emt 0:00:30]} 57. Ng2 {[%emt 0:00:02]} g5 {[%emt 0:00:07]} 58. hxg5 {[%emt 0:01:51]} Bxg5 {[%emt 0:00:05]} 59. Ne1 {[%emt 0:00:06]} exf3+ {[%emt 0:00:28]} 60. Kxf3 {[%emt 0:00:07]} Rh3+ {[%emt 0:00:04]} 0-1

[Event "Kragero Resort Chess A 2019"]
[Site "Kragero"]
[Date "2019.02.23"]
[Round "6.19"]
[White "Mkrtchyan, Anahit D."]
[Black "Stefansson, Vignir Vatnar"]
[Result "0-1"]
[ECO "A80"]
[WhiteElo "1841"]
[BlackElo "2263"]
[Annotator "NA RC"]
[PlyCount "76"]
[EventDate "2019.02.20"]
[EventType "swiss"]
[EventCountry "NOR"]
[SourceTitle "playchess.com"]
[Source "ChessBase"]
[SourceQuality "1"]
[TimeControl "5400+30"]

1. d4 {[%emt 0:00:00]} f5 {[%emt 0:00:32]} 2. Bg5 {[%emt 0:00:00]} h6 {[%emt 0:00:07]} 3. Bh4 {[%emt 0:00:00]} g5 {[%emt 0:00:05]} 4. e3 {[%emt 0:00:00]} Nf6 {[%emt 0:00:04]} 5. Bg3 {[%emt 0:00:00]} d6 {[%emt 0:00:05]} 6. h4 {[%emt 0:00:00]} g4 {[%emt 0:00:03]} 7. h5 {[%emt 0:00:01]} Be6 {[%emt 0:00:27]} 8. Ne2 {[%emt 0:00:04]} Bf7 {[%emt 0:00:13]} 9. Nf4 {[%emt 0:00:06]} c6 {[%emt 0:00:38]} 10. Nd2 {[%emt 0:08:38]} Qd7 {[%emt 0:02:08]} 11. Be2 {[%emt 0:07:37]} Bg7 {[%emt 0:00:15]} 12. c3 {[%emt 0:05:05]} O-O {[%emt 0:04:32]} 13. Qc2 {[%emt 0:03:11]} Re8 {[%emt 0:02:22]} 14. Bd3 {[%emt 0:03:58]} e6 {[%emt 0:00:08]} 15. O-O-O {[%emt 0:01:59]} Na6 {[%emt 0:06:40]} 16. f3 {[%emt 0:06:15]} Nc7 {[%emt 0:01:02]} 17. Kb1 {[%emt 0:05:14]} b5 {[%emt 0:03:06]} 18. e4 {[%emt 0:08:44]} e5 {[%emt 0:03:49]} 19. dxe5 {[%emt 0:05:20]} dxe5 {[%emt 0:00:06]} 20. Ne2 {[%emt 0:03:18]} f4 {[%emt 0:00:26]} 21. Bh4 {[%emt 0:00:28]} Qe6 {[%emt 0:02:12]} 22. c4 {[%emt 0:01:48]} g3 {[%emt 0:00:55]} 23. Bxf6 {[%emt 0:00:39]} Bxf6 {[%emt 0:00:06]} 24. Nb3 {[%emt 0:01:10]} bxc4 {[%emt 0:00:20]} 25. Nc5 {[%emt 0:00:18]} cxd3 {[%emt 0:00:16]} 26. Nxe6 {[%emt 0:00:35]} dxc2+ {[%emt 0:00:07]} 27. Kxc2 {[%emt 0:00:03]} Nxe6 {[%emt 0:00:06]} 28. Rd6 {[%emt 0:00:29]} Be7 {[%emt 0:00:13]} 29. Rxc6 {[%emt 0:00:08]} Rac8 {[%emt 0:00:03]} 30. Rxc8 {[%emt 0:00:08]} Rxc8+ {[%emt 0:00:01]} 31. Nc3 {[%emt 0:00:08]} Bb4 {[%emt 0:00:10]} 32. a3 {[%emt 0:00:23]} Nd4+ {[%emt 0:00:08]} 33. Kd3 {[%emt 0:00:08]} Bc4+ {[%emt 0:00:32]} 34. Kd2 {[%emt 0:00:04]} Bxc3+ {[%emt 0:00:09]} 35. bxc3 {[%emt 0:00:03]} Nb3+ {[%emt 0:00:10]} 36. Kc2 {[%emt 0:00:04]} Rd8 {[%emt 0:00:04]} 37. Rd1 {[%emt 0:00:37]} Rxd1 {[%emt 0:00:07]} 38. Kxd1 {[%emt 0:00:03]} Bf1 {[%emt 0:00:09]} 0-1

[Event "Kragero Resort Chess A 2019"]
[Site "Kragero"]
[Date "2019.02.23"]
[Round "6.25"]
[White "Holand, Per Fredrik"]
[Black "Kazarian, Anna-Maja"]
[Result "0-1"]
[ECO "B18"]
[WhiteElo "2024"]
[BlackElo "2189"]
[Annotator "ChessBase"]
[PlyCount "120"]
[EventDate "2019.02.20"]
[EventType "swiss"]
[EventCountry "NOR"]
[SourceTitle "playchess.com"]
[Source "ChessBase"]
[SourceQuality "1"]
[TimeControl "5400+30"]

1. e4 {[%emt 0:00:00]} c6 {[%emt 0:00:00]} 2. d4 {[%emt 0:00:00]} d5 {[%emt 0:00:00]} 3. Nc3 {[%emt 0:00:23]} dxe4 {[%emt 0:00:00]} 4. Nxe4 {[%emt 0:00:07]} Bf5 {[%emt 0:00:00]} 5. Ng3 {[%emt 0:00:08]} Bg6 {[%emt 0:00:00]} 6. h4 {[%emt 0:00:06]} h6 {[%emt 0:00:00]} 7. Nh3 {[%emt 0:00:06]} e5 {[%emt 0:14:17]} 8. dxe5 {[%emt 0:11:30]} Qa5+ {[%emt 0:01:10]} 9. c3 {[%emt 0:00:13]} Qxe5+ {[%emt 0:00:05]} 10. Be2 {[%emt 0:00:06]} Nf6 {[%emt 0:04:04]} 11. Qb3 {[%emt 0:05:31]} Qc7 {[%emt 0:15:01]} 12. Nf4 {[%emt 0:12:29]} Bh7 {[%emt 0:00:43]} 13. Nfh5 {[%emt 0:04:22]} Nbd7 {[%emt 0:05:37]} 14. Bf4 {[%emt 0:06:44]} Qb6 {[%emt 0:01:22]} 15. O-O-O {[%emt 0:00:41]} Qxb3 {[%emt 0:02:41]} 16. axb3 {[%emt 0:00:10]} Nd5 {[%emt 0:12:17]} 17. Bc4 {[%emt 0:05:58]} O-O-O {[%emt 0:06:16]} 18. Bxd5 {[%emt 0:04:11]} cxd5 {[%emt 0:00:06]} 19. Be3 {[%emt 0:03:04]} Nc5 {[%emt 0:10:51]} 20. Bxc5 {[%emt 0:04:15]} Bxc5 {[%emt 0:00:02]} 21. Rd2 {[%emt 0:00:12]} d4 {[%emt 0:09:33]} 22. b4 {[%emt 0:00:24]} Bb6 {[%emt 0:01:50]} 23. Rhd1 {[%emt 0:06:12]} Kb8 {[%emt 0:04:34]} 24. Nxg7 {[%emt 0:02:24]} Rc8 {[%emt 0:01:40]} 25. Rxd4 {[%emt 0:00:12]} Bxd4 {[%emt 0:00:10]} 26. Rxd4 {[%emt 0:00:06]} Rcd8 {[%emt 0:03:57]} 27. N7f5 {[%emt 0:01:08]} Rxd4 {[%emt 0:03:25]} 28. Nxd4 {[%emt 0:00:08]} f5 {[%emt 0:00:33]} 29. Ngxf5 {[%emt 0:02:20]} Bxf5 {[%emt 0:00:42]} 30. Nxf5 {[%emt 0:00:11]} h5 {[%emt 0:00:05]} 31. f3 {[%emt 0:01:02]} Rd8 {[%emt 0:01:47]} 32. Kc2 {[%emt 0:01:35]} Kc7 {[%emt 0:00:15]} 33. g4 {[%emt 0:01:05]} Rg8 {[%emt 0:01:42]} 34. Ne3 {[%emt 0:13:06]} Kd6 {[%emt 0:00:23]} 35. gxh5 {[%emt 0:04:49]} Ke5 {[%emt 0:00:28]} 36. Nc4+ {[%emt 0:00:22]} Kf4 {[%emt 0:00:40]} 37. Na5 {[%emt 0:00:27]} Rg7 {[%emt 0:01:19]} 38. c4 {[%emt 0:04:24]} Kxf3 {[%emt 0:00:14]} 39. b5 {[%emt 0:00:32]} Ke4 {[%emt 0:00:36]} 40. Kc3 {[%emt 0:00:21]} Rc7 {[%emt 0:00:51]} 41. Kb4 {[%emt 0:00:49]} Kd4 {[%emt 0:00:35]} 42. c5 {[%emt 0:01:01]} Kd5 {[%emt 0:00:21]} 43. c6 {[%emt 0:00:33]} bxc6 {[%emt 0:00:30]} 44. bxc6 {[%emt 0:00:24]} a6 {[%emt 0:00:10]} 45. Kc3 {[%emt 0:03:37]} Rh7 {[%emt 0:00:06]} 46. b4 {[%emt 0:01:34]} Rxh5 {[%emt 0:00:01]} 47. Kb3 {[%emt 0:00:27]} Kd6 {[%emt 0:00:43]} 48. Kc3 {[%emt 0:00:48]} Rxh4 {[%emt 0:00:03]} 49. Kb3 {[%emt 0:00:07]} Kc7 {[%emt 0:00:48]} 50. Nc4 {[%emt 0:03:49]} Kxc6 {[%emt 0:00:07]} 51. Na3 {[%emt 0:00:21]} Kd5 {[%emt 0:01:14]} 52. Nc2 {[%emt 0:00:33]} Rh3+ {[%emt 0:00:16]} 53. Ka4 {[%emt 0:00:38]} Rc3 {[%emt 0:01:01]} 54. Na3 {[%emt 0:00:13]} Kc6 {[%emt 0:00:16]} 55. Nb1 {[%emt 0:00:35]} Rc1 {[%emt 0:00:58]} 56. Na3 {[%emt 0:00:10]} Kb6 {[%emt 0:00:07]} 57. Kb3 {[%emt 0:00:14]} Rh1 {[%emt 0:00:34]} 58. Nc4+ {[%emt 0:00:40]} Kc6 {[%emt 0:00:04]} 59. Na5+ {[%emt 0:00:56]} Kb5 {[%emt 0:00:17]} 60. Ka3 {[%emt 0:00:46]} Rh3+ {[%emt 0:00:31]} 0-1

[Event "Kragero Resort Chess A 2019"]
[Site "Kragero"]
[Date "2019.02.23"]
[Round "6.29"]
[White "Sidali, Elias Hulleberg"]
[Black "Abdrlauf, Elham"]
[Result "0-1"]
[ECO "B27"]
[WhiteElo "1840"]
[BlackElo "2105"]
[Annotator "NA"]
[PlyCount "90"]
[EventDate "2019.02.20"]
[EventType "swiss"]
[EventCountry "NOR"]
[SourceTitle "playchess.com"]
[Source "ChessBase"]
[SourceQuality "1"]
[TimeControl "5400+30"]

1. e4 {[%emt 0:00:00]} c5 {[%emt 0:02:01]} 2. Nf3 {[%emt 0:00:00]} g6 {[%emt 0:00:20]} 3. d4 {[%emt 0:00:00]} cxd4 {[%emt 0:00:07]} 4. Qxd4 {[%emt 0:00:00]} Nf6 {[%emt 0:00:10]} 5. Nc3 {[%emt 0:00:00]} Nc6 {[%emt 0:00:06]} 6. Qa4 {[%emt 0:00:00]} d6 {[%emt 0:00:22]} 7. e5 {[%emt 0:00:00]} dxe5 {[%emt 0:00:07]} 8. Nxe5 {[%emt 0:00:00]} Bg7 {[%emt 0:00:09]} 9. Bb5 {[%emt 0:00:00]} O-O {[%emt 0:00:11]} 10. Nxc6 {[%emt 0:00:00]} bxc6 {[%emt 0:00:05]} 11. Bxc6 {[%emt 0:00:03]} Rb8 {[%emt 0:00:10]} 12. O-O {[%emt 0:00:06]} Bf5 {[%emt 0:00:56]} 13. h3 {[%emt 0:08:04]} Qc8 {[%emt 0:00:47]} 14. Re1 {[%emt 0:04:53]} Bxc2 {[%emt 0:04:05]} 15. Qxc2 {[%emt 0:00:03]} Qxc6 {[%emt 0:00:03]} 16. Rxe7 {[%emt 0:01:50]} Nd5 {[%emt 0:00:09]} 17. Re1 {[%emt 0:04:58]} Nxc3 {[%emt 0:00:09]} 18. bxc3 {[%emt 0:00:01]} Qxc3 {[%emt 0:00:07]} 19. Qxc3 {[%emt 0:00:02]} Bxc3 {[%emt 0:00:08]} 20. Bf4 {[%emt 0:00:03]} Rbc8 {[%emt 0:00:09]} 21. Be3 {[%emt 0:05:03]} Bxa1 {[%emt 0:00:39]} 22. Rxa1 {[%emt 0:00:02]} a6 {[%emt 0:00:37]} 23. a4 {[%emt 0:03:26]} a5 {[%emt 0:02:19]} 24. Bb6 {[%emt 0:02:40]} Rc4 {[%emt 0:00:38]} 25. Bxa5 {[%emt 0:00:10]} Ra8 {[%emt 0:00:05]} 26. Bb6 {[%emt 0:00:39]} Rcxa4 {[%emt 0:00:07]} 27. Rxa4 {[%emt 0:00:06]} Rxa4 {[%emt 0:00:05]} 28. Be3 {[%emt 0:05:03]} f5 {[%emt 0:00:21]} 29. g3 {[%emt 0:00:36]} Kf7 {[%emt 0:00:20]} 30. Kg2 {[%emt 0:00:09]} Kf6 {[%emt 0:00:10]} 31. h4 {[%emt 0:00:05]} Ke5 {[%emt 0:00:14]} 32. Kf3 {[%emt 0:04:06]} Ra3 {[%emt 0:00:07]} 33. Kg2 {[%emt 0:00:17]} Ke4 {[%emt 0:00:16]} 34. Bg5 {[%emt 0:00:09]} Kd3 {[%emt 0:00:28]} 35. Kf3 {[%emt 0:00:59]} Kc2+ {[%emt 0:00:15]} 36. Ke2 {[%emt 0:00:01]} Ra6 {[%emt 0:00:17]} 37. Kf3 {[%emt 0:01:31]} Re6 {[%emt 0:00:09]} 38. Be3 {[%emt 0:00:08]} Kd3 {[%emt 0:00:14]} 39. Kf4 {[%emt 0:00:39]} Ke2 {[%emt 0:00:28]} 40. h5 {[%emt 0:01:58]} gxh5 {[%emt 0:02:27]} 41. Kxf5 {[%emt 0:01:41]} Rg6 {[%emt 0:00:01]} 42. Kf4 {[%emt 0:02:34]} Rg4+ {[%emt 0:00:03]} 43. Kf5 {[%emt 0:00:14]} Kf3 {[%emt 0:00:09]} 44. Bb6 {[%emt 0:05:14]} h4 {[%emt 0:00:13]} 45. gxh4 {[%emt 0:00:14]} Rxh4 {[%emt 0:00:09]} 0-1

[Event "Kragero Resort Chess A 2019"]
[Site "Kragero"]
[Date "2019.02.23"]
[Round "6.30"]
[White "Jonsson, Gauti Pall"]
[Black "Boe, Oeyvind"]
[Result "0-1"]
[ECO "E17"]
[WhiteElo "2070"]
[BlackElo "1908"]
[Annotator "NA RC"]
[PlyCount "52"]
[EventDate "2019.02.20"]
[EventType "swiss"]
[EventCountry "NOR"]
[SourceTitle "playchess.com"]
[Source "ChessBase"]
[SourceQuality "1"]
[TimeControl "5400+30"]

1. d4 {[%emt 0:00:00]} Nf6 {[%emt 0:00:00]} 2. c4 {[%emt 0:00:16]} e6 {[%emt 0:00:24]} 3. Nf3 {[%emt 0:00:24]} b6 {[%emt 0:00:11]} 4. g3 {[%emt 0:00:44]} Bb7 {[%emt 0:00:40]} 5. Bg2 {[%emt 0:00:45]} Be7 {[%emt 0:02:32]} 6. O-O {[%emt 0:01:53]} O-O {[%emt 0:00:06]} 7. Re1 {[%emt 0:04:09]} d5 {[%emt 0:05:04]} 8. Ne5 {[%emt 0:02:31]} c5 {[%emt 0:03:43]} 9. Be3 {[%emt 0:05:13]} cxd4 {[%emt 0:02:56]} 10. Bxd4 {[%emt 0:00:37]} Qc7 {[%emt 0:06:19]} 11. cxd5 {[%emt 0:04:05]} Bxd5 {[%emt 0:06:11]} 12. e4 {[%emt 0:02:55]} Bb7 {[%emt 0:00:36]} 13. Qe2 {[%emt 0:06:37]} Rd8 {[%emt 0:12:26]} 14. Bc3 {[%emt 0:02:08]} Na6 {[%emt 0:14:05]} 15. Nd2 {[%emt 0:03:36]} Rac8 {[%emt 0:06:23]} 16. Rac1 {[%emt 0:01:56]} Qb8 {[%emt 0:00:04]} 17. Ng4 {[%emt 0:08:34]} Nxg4 {[%emt 0:01:01]} 18. Qxg4 {[%emt 0:00:21]} Rxc3 {[%emt 0:00:14]} 19. Rxc3 {[%emt 0:00:51]} Rxd2 {[%emt 0:00:07]} 20. Bf1 {[%emt 0:02:12]} Bb4 {[%emt 0:12:14]} 21. Rf3 {[%emt 0:01:27]} Rxb2 {[%emt 0:02:50]} 22. Rd1 {[%emt 0:00:18]} Rd2 {[%emt 0:03:56]} 23. Rxd2 {[%emt 0:02:24]} Bxd2 {[%emt 0:00:05]} 24. Bc4 {[%emt 0:00:24]} Nc5 {[%emt 0:01:10]} 25. Bd3 {[%emt 0:03:51]} Qd8 {[%emt 0:00:27]} 26. Bc2 {[%emt 0:00:52]} f5 {[%emt 0:05:44]} 0-1